bitfinex/quotes_SOLUSD_20250429
["timestamp","ask_amount","ask_price","bid_price","bid_amount"]
[1745897798001,11.3034295,147.66,147.63,0.063]
[1745897798799,17.39860951,147.66,147.63,0.063]
[1745897804303,11.3034295,147.66,147.63,0.063]
[1745897804607,11.3034295,147.67,147.63,11.3664295]
[1745897806087,11.3034295,147.67,147.63,17.46268424]
[1745897808002,82.9,147.66,147.63,17.46268424]
[1745897808413,82.9,147.66,147.63,6.15925474]
[1745897808590,0.2641086,147.67,147.63,17.46268424]
[1745897808918,0.2641086,147.67,147.66,11.3034295]
[1745897810413,0.2641086,147.67,147.66,17.39851279]
[1745897812819,0.2641086,147.67,147.66,11.3034295]
[1745897813323,0.2641086,147.67,147.66,17.39851279]
[1745897813918,0.2641086,147.67,147.66,6.09508329]
[1745897814097,0.2641086,147.67,147.66,11.3034295]
[1745897816600,0.2641086,147.67,147.66,17.39851279]
[1745897818116,0.2641086,147.67,147.66,6.09508329]
[1745897818325,0.2641086,147.67,147.66,11.3034295]
[1745897819418,0.2641086,147.67,147.66,17.54067436]
[1745897819926,0.2641086,147.67,147.66,36.19032322]
[1745897820108,0.2641086,147.67,147.66,42.22542322]
[1745897828218,80.41121678,147.72,147.66,42.22542322]
[1745897828421,86.50392658,147.72,147.7,11.3034295]
[1745897830424,1.5032,147.7,147.63,0.063]
[1745897830600,11.3034295,147.65,147.63,0.063]
[1745897831007,11.3034295,147.64,147.63,0.063]
[1745897832617,11.3034295,147.65,147.63,0.063]
[1745897832823,11.3034295,147.66,147.63,0.063]
[1745897833533,11.3034295,147.65,147.63,0.063]
[1745897837433,6.09425785,147.68,147.63,11.3664295]
[1745897837607,91.71464628,147.67,147.63,11.3664295]
[1745897839218,11.3034295,147.66,147.63,0.063]
[1745897840114,11.3034295,147.65,147.63,0.063]
[1745897840507,11.3034295,147.64,147.63,0.063]
[1745897841622,80.41121678,147.67,147.63,0.063]
[1745897841831,80.41121678,147.67,147.65,11.3034295]
[1745897842012,80.41121678,147.67,147.66,11.3034295]
[1745897842739,80.41121678,147.72,147.66,11.44559107]
[1745897843034,80.41121678,147.72,147.7,11.3034295]
[1745897843325,0.03,147.73,147.71,11.3034295]
[1745897843527,0.03,147.73,147.72,11.44559107]
[1745897848707,0.03,147.73,147.71,11.3034295]
[1745897850823,0.03,147.73,147.72,11.3034295]
[1745897862738,0.03,147.73,147.71,11.3034295]
[1745897864240,0.03,147.73,147.72,11.3034295]
[1745897867041,11.3334295,147.73,147.68,13.38]
[1745897867344,11.3034295,147.71,147.68,13.38]
[1745897867561,91.71464628,147.72,147.68,24.6834295]
[1745897869043,97.80749248,147.72,147.68,24.6834295]
[1745897872595,80.41121678,147.71,147.68,24.6834295]
[1745897875657,86.5042752,147.71,147.68,24.6834295]
[1745897877478,97.8077047,147.71,147.68,13.38]
[1745897879970,86.5042752,147.71,147.68,13.38]
[1745897880672,80.41121678,147.71,147.69,11.3034295]
[1745897881876,80.41121678,147.71,147.68,24.6834295]
[1745897883787,11.3334295,147.73,147.7,22.606859]
[1745897883788,0.03,147.73,147.7,22.606859]
[1745897884075,0.03,147.77,147.7,22.606859]
[1745897884076,0.03,147.77,147.72,56.09523993]
[1745897884282,0.03,147.77,147.76,11.44559107]
[1745897884982,0.03,147.77,147.76,17.53654938]
[1745897885779,0.03,147.77,147.76,17.39438781]
[1745897885973,0.03,147.77,147.76,17.53654938]
[1745897886777,0.03,147.77,147.76,36.18619824]
[1745897886951,0.03,147.77,147.76,37.53937391]
[1745897887276,0.03,147.77,147.76,48.84280341]
[1745897889397,0.03,147.77,147.76,37.53937391]
[1745897891255,0.03,147.77,147.76,48.84280341]
[1745897897882,0.03,147.77,147.76,37.53937391]
[1745897899181,0.03,147.77,147.76,48.84280341]
[1745897902177,0.03,147.77,147.76,62.20280341]
[1745897904589,0.03,147.77,147.76,50.89937391]
[1745897904767,0.03,147.77,147.76,76.75721234]
[1745897904963,0.03,147.77,147.73,6.09212975]
[1745897905179,11.3334295,147.77,147.72,24.6634295]
[1745897905373,11.3034295,147.76,147.72,13.36]
[1745897905594,11.3334295,147.77,147.73,11.3034295]
[1745897906391,17.42411043,147.77,147.73,11.3034295]
[1745897906565,11.3334295,147.77,147.73,11.3034295]
[1745897906770,0.03,147.77,147.74,11.3034295]
[1745897908995,0.03,147.77,147.74,17.39514505]
[1745897910901,0.03,147.77,147.76,11.3034295]
[1745897913802,0.03,147.77,147.76,17.39438781]
[1745897918405,0.03,147.77,147.76,11.3034295]
[1745897921200,0.03,147.77,147.76,11.44559107]
[1745897925696,0.03,147.77,147.76,37.53944575]
[1745897926597,0.03,147.77,147.76,63.53944575]
[1745897926904,0.03,147.77,147.76,74.84287525]
[1745897929411,0.03,147.77,147.76,63.53944575]
[1745897932113,0.03,147.77,147.76,74.84287525]
[1745897933210,0.03,147.79,147.78,44.64964886]
[1745897933415,0.03,147.79,147.78,70.80806961]
[1745897933718,0.03,147.82,147.79,18.79181043]
[1745897934014,0.03,147.82,147.81,11.44559107]
[1745897935015,0.03,147.82,147.81,17.53448897]
[1745897942016,0.03,147.82,147.81,37.3034295]
[1745897942221,0.03,147.82,147.81,37.44559107]
[1745897942935,0.03,147.82,147.81,11.44559107]
[1745897943802,0.03,147.82,147.8,11.3034295]
[1745897944600,0.03,147.82,147.81,11.3034295]
[1745897946425,0.03,147.82,147.81,17.53448897]
[1745897946823,0.03,147.82,147.81,43.53448897]
[1745897948732,0.03,147.82,147.81,62.18413783]
[1745897956936,0.03,147.82,147.81,37.44559107]
[1745897957313,0.03,147.82,147.81,26.14216157]
[1745897957515,0.03,147.82,147.81,11.44559107]
[1745897965621,0.03,147.82,147.81,17.53448897]
[1745897970461,11.3334295,147.82,147.8,13.36]
[1745897970657,11.3034295,147.81,147.8,13.36]
[1745897970837,11.3034295,147.81,147.78,0.14216157]
[1745897972760,11.3034295,147.8,147.73,1.41624992]
[1745897972950,11.3034295,147.76,147.73,0.063]
[1745897973266,11.3034295,147.76,147.73,0.20516157]
[1745897973754,11.3034295,147.76,147.73,0.063]
[1745897974057,11.3034295,147.76,147.73,0.20516157]
[1745897978861,11.3034295,147.75,147.73,0.20516157]
[1745897979067,11.3034295,147.76,147.73,0.20516157]
[1745897980545,11.3034295,147.75,147.73,0.20516157]
[1745897981949,11.3034295,147.75,147.73,0.063]
[1745897981950,17.3949007,147.75,147.73,0.063]
[1745897983178,11.3034295,147.74,147.73,0.063]
[1745897983970,11.3034295,147.75,147.73,0.063]
[1745897987688,82.04201678,147.77,147.73,0.063]
[1745897987863,11.3034295,147.76,147.73,0.063]
[1745897988177,11.3034295,147.75,147.73,0.063]
[1745897992371,11.3034295,147.74,147.73,0.063]
[1745897998174,17.39521236,147.74,147.73,0.063]
[1745898000686,11.3034295,147.74,147.73,0.063]
[1745898001560,17.39521236,147.74,147.73,0.063]
[1745898003579,17.39521236,147.74,147.67,0.063]
[1745898003580,82.9,147.73,147.67,0.063]
[1745898003781,11.3034295,147.68,147.67,0.063]
[1745898006277,11.3034295,147.69,147.67,0.063]
[1745898009595,11.3034295,147.68,147.67,0.063]
[1745898010989,100.29768735,147.68,147.67,0.063]
[1745898022508,17.39768735,147.68,147.67,0.063]
[1745898022740,23.43118735,147.68,147.67,0.063]
[1745898023798,17.39768735,147.68,147.67,0.063]
[1745898031627,13.33433849,147.68,147.67,0.063]
[1745898043631,82.9,147.66,147.64,0.063]
[1745898043852,28.56998312,147.68,147.64,0.063]
[1745898043853,119.1004032,147.65,147.64,1e-08]
[1745898044955,42.2958993,147.65,147.64,1e-08]
[1745898045639,28.73396986,147.65,147.64,1e-08]
[1745898046330,17.41473298,147.65,147.64,1e-08]
[1745898055253,6.0954961,147.65,147.64,1e-08]
[1745898055445,17.41473298,147.65,147.64,1e-08]
[1745898067565,7.24296943,147.65,147.64,1e-08]
[1745898070165,13.33846553,147.65,147.64,1e-08]
[1745898080890,6.09508329,147.66,147.64,1e-08]
[1745898081066,7.24296943,147.65,147.64,1e-08]
[1745898081267,6.09508329,147.66,147.64,1e-08]
[1745898081569,7.24296943,147.65,147.64,1e-08]
[1745898082888,13.33846553,147.65,147.64,1e-08]
[1745898083876,36.21484715,147.64,147.61,0.063]
[1745898084081,7.24296943,147.62,147.61,0.063]
[1745898084962,13.33970428,147.62,147.61,0.063]
[1745898086268,31.98935314,147.62,147.61,1e-08]
[1745898086696,18.64964886,147.61,147.6,0.063]
[1745898086987,25.89261829,147.61,147.6,0.063]
[1745898087171,31.98976617,147.61,147.6,0.063]
[1745898089687,31.98976617,147.61,147.6,1e-08]
[1745898091467,47.37479746,147.61,147.56,0.09550093]
[1745898091792,101.54964886,147.57,147.56,0.09550093]
[1745898092093,25.89261829,147.57,147.56,0.09550093]
[1745898092680,7.24296943,147.57,147.56,0.09550093]
[1745898093681,13.34176999,147.57,147.56,0.09550093]
[1745898105879,60.96329657,147.57,147.56,0.09550093]
[1745898106480,13.34176999,147.57,147.56,0.09550093]
[1745898109685,13.34176999,147.57,147.55,0.063]
[1745898109884,7.24296943,147.56,147.55,0.063]
[1745898110085,90.14296943,147.56,147.55,0.063]
[1745898118706,96.2421833,147.56,147.55,0.063]
[1745898120795,88.99921387,147.56,147.55,0.063]
[1745898120995,96.2421833,147.56,147.55,0.063]
[1745898121721,90.14296943,147.56,147.55,0.063]
[1745898122014,7.24296943,147.56,147.55,0.063]
[1745898122312,13.3421833,147.56,147.55,0.063]
[1745898123515,42.31406102,147.56,147.55,0.063]
[1745898126622,60.96370988,147.56,147.55,1e-08]
[1745898131709,42.31406102,147.56,147.55,1e-08]
[1745898135297,60.96370988,147.56,147.55,1e-08]
[1745898135623,60.96370988,147.56,147.52,1e-08]
[1745898135624,77.35390614,147.56,147.52,1e-08]
[1745898135824,31.99307243,147.53,147.52,1e-08]
[1745898135991,31.99307243,147.53,147.5,0.03]
[1745898135992,18.64964886,147.52,147.5,0.03]
[1745898136196,7.24296943,147.51,147.5,0.03]
[1745898136927,13.34425069,147.51,147.5,0.03]
[1745898146133,7.24296943,147.51,147.5,0.03]
[1745898147137,13.34425069,147.51,147.5,0.03]
[1745898149058,21.3515895,147.53,147.5,0.03]
[1745898149329,7.24296943,147.51,147.5,0.03]
[1745898150236,7.24296943,147.52,147.5,0.03]
[1745898152533,13.34392382,147.52,147.5,0.03]
[1745898154536,6.09880056,147.57,147.51,7.24296943]
[1745898154842,6.16154131,147.58,147.55,7.24296943]
[1745898155341,82.9,147.56,147.55,7.24296943]
[1745898156746,82.963,147.58,147.55,13.34259001]
[1745898156925,0.063,147.58,147.57,7.24296943]
[1745898157121,0.063,147.58,147.57,7.385131]
[1745898157315,0.063,147.58,147.56,13.38]
[1745898157645,0.063,147.58,147.56,24.70062709]
[1745898157868,0.063,147.58,147.57,11.32062709]
[1745898168624,0.063,147.58,147.56,24.70062709]
[1745898170150,94.22062709,147.57,147.52,1.35515718]
[1745898170352,11.32062709,147.53,147.5,0.12550093]
[1745898170531,11.32062709,147.54,147.5,0.2676625]
[1745898170733,11.32062709,147.55,147.51,11.32062709]
[1745898171233,11.32062709,147.56,147.52,11.46278866]
[1745898171855,17.42001187,147.56,147.52,11.46278866]
[1745898173552,17.42028218,147.55,147.51,24.68062709]
[1745898173741,11.32062709,147.54,147.51,13.36]
[1745898174355,6.09965509,147.55,147.51,24.68062709]
[1745898174655,17.42028218,147.55,147.51,24.68062709]
[1745898176764,0.063,147.58,147.51,24.68062709]
[1745898176965,11.32062709,147.55,147.51,24.68062709]
[1745898177858,17.42051365,147.55,147.51,24.68062709]
[1745898178357,6.09988656,147.55,147.52,11.32062709]
[1745898180752,94.22062709,147.56,147.53,11.32062709]
[1745898180953,82.9,147.56,147.53,11.32062709]
[1745898181672,94.22062709,147.56,147.52,11.32062709]
[1745898181973,11.32062709,147.55,147.52,11.32062709]
[1745898182468,100.31992784,147.56,147.52,11.32062709]
[1745898186676,11.32062709,147.55,147.51,24.82278866]
[1745898186856,11.32062709,147.54,147.51,13.36]
[1745898187060,11.32062709,147.54,147.5,11.44612802]
[1745898187061,11.32062709,147.52,147.5,0.12550093]
[1745898187380,94.22062709,147.51,147.5,0.12550093]
[1745898189687,100.32190835,147.51,147.5,0.12550093]
[1745898194999,17.42190835,147.51,147.5,0.12550093]
[1745898211410,17.42190835,147.51,147.49,0.063]
[1745898211411,22.64125418,147.5,147.49,0.063]
[1745898211586,41.29090304,147.5,147.49,0.063]
[1745898212313,29.97027595,147.5,147.49,0.063]
[1745898213717,36.07197086,147.5,147.49,0.063]
[1745898216594,47.39259795,147.5,147.49,0.063]
[1745898216995,62.64683523,147.5,147.45,0.03]
[1745898217207,11.32062709,147.46,147.45,0.03]
[1745898217506,7.25861193,147.46,147.45,0.03]
[1745898218114,13.36196199,147.46,147.45,0.03]
[1745898223527,1.6315,147.54,147.45,22.28101193]
[1745898223730,7.25861193,147.51,147.47,7.25861193]
[1745898224834,13.36012828,147.51,147.47,7.25861193]
[1745898225326,13.36012828,147.51,147.46,7.25861193]
[1745898225552,17.43525457,147.51,147.46,11.33373822]
[1745898227433,82.9,147.5,147.46,11.33373822]
[1745898227925,82.9,147.5,147.47,11.33373822]
[1745898228124,82.9,147.5,147.48,11.33373822]
[1745898228437,82.9,147.5,147.47,11.33373822]
[1745898230844,82.9,147.5,147.46,17.43707871]
[1745898231136,100.3355222,147.5,147.45,26.35613822]
[1745898231333,100.3355222,147.5,147.46,11.33373822]
[1745898232835,89.00178398,147.5,147.46,11.33373822]
[1745898233008,82.9,147.5,147.49,11.33373822]
[1745898233215,82.9,147.5,147.48,11.33373822]
[1745898235037,100.33545074,147.5,147.46,11.33373822]
[1745898235244,100.33545074,147.5,147.45,21.26824023]
[1745898235428,82.9,147.5,147.46,11.33373822]
[1745898238923,82.9,147.5,147.47,11.33373822]
[1745898241024,82.9,147.5,147.47,17.43666614]
[1745898241522,82.9,147.5,147.47,11.33373822]
[1745898242042,82.9,147.5,147.47,17.43664569]
[1745898242247,82.9,147.5,147.48,11.33373822]
[1745898243846,82.9,147.5,147.49,11.33373822]
[1745898244353,82.9,147.5,147.48,11.33373822]
[1745898244757,11.33373822,147.49,147.47,6.10290747]
[1745898245051,82.9,147.5,147.47,17.43664569]
[1745898245446,11.33373822,147.49,147.45,30.96951581]
[1745898245642,94.23373822,147.5,147.46,11.33373822]
[1745898246155,82.9,147.5,147.48,11.33373822]
[1745898246754,82.9,147.5,147.47,11.33373822]
[1745898248458,82.9,147.5,147.47,17.4364618]
[1745898250557,82.9,147.5,147.46,17.57915207]
[1745898251347,82.9,147.5,147.47,11.33373822]
[1745898254161,82.9,147.5,147.47,17.43651099]
[1745898261468,82.9,147.5,147.47,7.25260001]
[1745898265550,82.9,147.5,147.47,13.35550716]
[1745898268966,90.15260001,147.5,147.46,13.35579074]
[1745898269360,82.9,147.5,147.47,7.25260001]
[1745898270872,82.9,147.5,147.47,13.35550218]
[1745898271979,82.9,147.53,147.49,7.25260001]
[1745898272173,82.9,147.53,147.5,7.25260001]
[1745898274073,7.25260001,147.52,147.49,13.36]
[1745898274273,7.25260001,147.51,147.49,13.36]
[1745898274579,7.25260001,147.5,147.49,13.36]
[1745898275684,6.10128126,147.51,147.49,13.36]
[1745898275979,7.25260001,147.5,147.49,13.36]
[1745898277293,6.10128126,147.51,147.49,13.36]
[1745898277597,90.15260001,147.52,147.48,7.25260001]
[1745898277879,96.25359785,147.52,147.48,7.25260001]
[1745898279482,100.33266549,147.52,147.48,11.33166765]
[1745898279987,82.9,147.52,147.5,11.33166765]
[1745898280871,82.9,147.52,147.49,0.14216157]
[1745898281075,82.9,147.52,147.5,11.33166765]
[1745898282889,82.9,147.52,147.51,11.33166765]
[1745898283075,82.963,147.56,147.51,11.47382922]
[1745898283270,82.963,147.56,147.53,11.33166765]
[1745898284081,94.29466765,147.56,147.52,17.43220869]
[1745898284391,94.29466765,147.56,147.52,11.33166765]
[1745898286178,94.29466765,147.56,147.51,17.57500914]
[1745898287289,94.29466765,147.56,147.52,11.33166765]
[1745898288189,11.33166765,147.55,147.51,0.14216157]
[1745898288374,11.33166765,147.52,147.47,24.69166765]
[1745898288575,11.33166765,147.51,147.47,24.69166765]
[1745898288872,11.33166765,147.51,147.48,0.14216157]
[1745898289277,11.33166765,147.5,147.47,13.36]
[1745898290494,11.33166765,147.48,147.45,0.03]
[1745898290691,11.33166765,147.46,147.45,0.03]
[1745898293177,17.43501771,147.46,147.45,0.03]
[1745898294073,89.00305048,147.47,147.45,0.03]
[1745898294492,11.33166765,147.46,147.45,0.03]
[1745898297394,94.23166765,147.47,147.45,0.03]
[1745898300491,82.9,147.47,147.45,0.03]
[1745898300997,11.33166765,147.48,147.45,0.17216157]
[1745898301190,82.9,147.5,147.47,11.33166765]
[1745898301583,100.33343694,147.5,147.45,0.17216157]
[1745898301783,100.33343694,147.5,147.46,11.33166765]
[1745898302187,82.9,147.5,147.46,11.33166765]
[1745898302390,100.33344218,147.5,147.46,11.33166765]
[1745898303883,11.33166765,147.48,147.45,0.03]
[1745898304097,11.33166765,147.46,147.45,0.03]
[1745898306094,17.43501771,147.46,147.45,0.03]
[1745898311226,6.10293619,147.47,147.45,0.03]
[1745898311426,11.33166765,147.46,147.45,0.03]
[1745898313204,17.43501771,147.46,147.45,0.03]
[1745898314328,11.33166765,147.46,147.45,0.03]
[1745898315603,17.43501771,147.46,147.45,0.03]
[1745898315807,11.33166765,147.48,147.45,0.03]
[1745898316630,6.10210861,147.49,147.45,0.03]
[1745898316924,11.33166765,147.48,147.45,0.03]
[1745898317818,11.33166765,147.49,147.45,11.36166765]
[1745898318322,15.25200194,147.53,147.45,11.36166765]
[1745898318323,0.063,147.55,147.48,11.33166765]
[1745898318515,11.39466765,147.55,147.51,11.33166765]
[1745898319345,0.063,147.55,147.51,11.33166765]
[1745898319519,82.963,147.55,147.52,11.33166765]
[1745898320032,82.963,147.55,147.53,11.33166765]
[1745898320211,0.063,147.55,147.51,0.14216157]
[1745898320534,0.063,147.55,147.52,11.33166765]
[1745898321210,0.063,147.55,147.53,17.43211028]
[1745898321537,0.063,147.55,147.53,11.33166765]
[1745898321905,0.063,147.55,147.54,11.47382922]
[1745898322207,0.063,147.55,147.54,0.14216157]
[1745898323224,0.063,147.55,147.5,13.36]
[1745898323545,0.063,147.55,147.53,11.33166765]
[1745898324255,0.063,147.55,147.54,11.47382922]
[1745898325555,0.063,147.55,147.54,17.57386988]
[1745898325938,0.063,147.55,147.54,0.14216157]
[1745898326150,0.063,147.55,147.54,11.47382922]
[1745898327228,0.063,147.55,147.54,17.57386988]
[1745898327422,0.063,147.55,147.54,18.92906731]
[1745898329144,0.063,147.55,147.54,12.82902665]
[1745898329353,0.063,147.55,147.54,0.14216157]
[1745898329531,0.063,147.55,147.53,37.33166765]
[1745898330040,0.063,147.55,147.54,10.97382922]
[1745898330622,0.063,147.55,147.54,12.32908734]
[1745898331254,0.063,147.55,147.54,30.9787362]
[1745898331571,0.063,147.55,147.54,7.59746035]
[1745898331736,0.063,147.55,147.54,17.57386988]
[1745898333034,0.063,147.55,147.54,18.92909751]
[1745898333737,0.063,147.55,147.54,7.59742986]
[1745898333937,0.063,147.55,147.54,18.92909751]
[1745898334940,0.063,147.55,147.54,17.57386988]
[1745898337275,0.063,147.55,147.54,11.47382922]
[1745898337573,0.063,147.55,147.53,0.14216157]
[1745898337780,0.063,147.55,147.52,11.33166765]
[1745898337940,0.063,147.55,147.51,43.43294891]
[1745898338470,0.063,147.55,147.52,0.14216157]
[1745898339374,11.39466765,147.55,147.52,0.14216157]
[1745898340167,11.33166765,147.54,147.5,13.36]
[1745898340360,11.33166765,147.51,147.5,13.36]
[1745898340561,11.33166765,147.52,147.48,6.2743999]
[1745898340757,11.33166765,147.52,147.49,0.14216157]
[1745898341567,94.23166765,147.53,147.49,17.57589475]
[1745898342074,94.23166765,147.53,147.49,17.43373318]
[1745898343574,82.9,147.53,147.5,17.57529255]
[1745898343767,82.9,147.53,147.51,11.33166765]
[1745898344757,94.29466765,147.55,147.51,11.33166765]
[1745898345073,94.29466765,147.55,147.5,17.57529255]
[1745898345372,100.39431312,147.55,147.5,17.57529255]
[1745898345776,94.29466765,147.55,147.5,17.57529255]
[1745898346759,11.33166765,147.54,147.5,11.47382922]
[1745898347059,11.33166765,147.54,147.5,17.57549961]
[1745898348459,89.06276407,147.55,147.5,17.57549961]
[1745898348658,11.33166765,147.54,147.5,17.57549961]
[1745898349875,17.43176242,147.54,147.5,0.14216157]
[1745898350056,11.33166765,147.53,147.5,0.14216157]
[1745898350559,11.33166765,147.51,147.48,0.03]
[1745898350760,11.33166765,147.51,147.48,0.17216157]
[1745898351674,11.33166765,147.5,147.48,0.03]
[1745898351856,11.33166765,147.49,147.48,0.03]
[1745898353577,100.33377626,147.49,147.48,0.03]
[1745898354084,111.66544391,147.49,147.48,0.03]
[1745898354664,100.33377626,147.49,147.48,0.03]
[1745898359485,17.43377626,147.49,147.48,0.03]
[1745898360883,82.9,147.51,147.48,0.03]
[1745898361095,82.9,147.51,147.48,11.36166765]
[1745898361305,12.92506765,147.52,147.48,11.36166765]
[1745898361793,11.33166765,147.52,147.48,11.36166765]
[1745898362296,6.10059706,147.53,147.48,0.03]
[1745898362297,11.33166765,147.49,147.48,0.03]
[1745898364410,17.43377626,147.49,147.48,0.03]
[1745898370819,28.76544391,147.49,147.48,0.03]
[1745898371930,17.43377626,147.49,147.48,0.03]
[1745898377818,28.76544391,147.49,147.48,0.03]
[1745898378920,17.43377626,147.49,147.48,0.03]
[1745898384543,11.33166765,147.49,147.48,0.03]
[1745898384732,17.43377626,147.49,147.48,0.03]
[1745898386133,6.10128126,147.51,147.48,0.03]
[1745898386339,11.33166765,147.5,147.48,0.03]
[1745898386842,11.33166765,147.52,147.48,0.03]
[1745898387049,11.33166765,147.51,147.48,0.03]
[1745898388948,17.43306231,147.51,147.48,0.03]
[1745898389154,11.33166765,147.5,147.48,0.03]
[1745898389755,15.621,147.54,147.48,0.03]
[1745898389756,11.33166765,147.51,147.48,0.03]
[1745898391653,82.9,147.5,147.48,0.03]
[1745898394857,94.23166765,147.53,147.48,17.60628619]
[1745898395036,82.9,147.53,147.5,11.33166765]
[1745898398558,94.23166765,147.53,147.49,17.43346134]
[1745898400283,82.9,147.53,147.5,11.33166765]
[1745898400787,82.9,147.53,147.49,6.10179369]
[1745898401000,94.23166765,147.53,147.49,17.43346134]
[1745898401487,94.23166765,147.53,147.49,11.33166765]
[1745898402381,94.23166765,147.53,147.48,6.27458063]
[1745898402382,11.33166765,147.52,147.48,17.60624828]
[1745898402983,82.9,147.53,147.48,6.27458063]
[1745898403163,82.9,147.53,147.49,11.47382922]
[1745898403164,94.23166765,147.53,147.49,11.47382922]
[1745898404585,94.23166765,147.53,147.49,17.57580067]
[1745898409070,82.9,147.53,147.5,17.43336206]
[1745898410085,82.9,147.53,147.5,11.33166765]
[1745898415383,82.9,147.53,147.5,17.43330143]
[1745898415576,82.963,147.55,147.52,7.24793478]
[1745898415768,82.963,147.55,147.53,7.24793478]
[1745898417494,0.063,147.55,147.54,0.14216157]
[1745898417666,0.063,147.55,147.54,32.13978587]
[1745898419572,0.063,147.55,147.54,36.21137767]
[1745898420473,0.063,147.55,147.54,24.89185109]
[1745898420978,0.063,147.55,147.54,36.21137767]
[1745898422676,0.063,147.55,147.54,62.21137767]
[1745898423293,0.063,147.56,147.55,18.79181043]
[1745898423488,0.063,147.58,147.57,44.79181043]
[1745898423675,0.063,147.61,147.58,18.79181043]
[1745898423875,0.063,147.61,147.59,1.49670106]
[1745898424385,0.063,147.61,147.59,12.81622764]
[1745898424789,0.063,147.61,147.59,18.91420175]
[1745898427797,0.063,147.61,147.59,7.59467517]
[1745898428002,0.063,147.61,147.59,18.91420175]
[1745898434215,0.063,147.61,147.59,37.56385061]
[1745898436013,0.063,147.64,147.62,26.14216157]
[1745898436219,0.063,147.64,147.62,52.79600098]
[1745898436889,0.063,147.64,147.62,70.09133701]
[1745898437588,0.063,147.64,147.62,76.18807186]
[1745898447526,0.063,147.64,147.62,72.10486201]
[1745898448731,0.063,147.64,147.62,40.12216157]
[1745898448926,0.063,147.64,147.62,53.45521315]
[1745898450640,7.29931673,147.64,147.6,39.98]
[1745898450949,8.92361673,147.64,147.61,0.14216157]
[1745898451147,1.6873,147.64,147.61,7.3784783]
[1745898451318,1.6873,147.64,147.62,7.23631673]
[1745898453312,1.6873,147.64,147.61,7.3784783]
[1745898453849,15.0195693,147.64,147.61,0.14216157]
[1745898454338,15.0195693,147.64,147.6,13.98]
[1745898454516,7.29931673,147.63,147.6,13.98]
[1745898455050,7.23631673,147.61,147.6,13.98]
[1745898455237,7.23631673,147.61,147.56,13.96]
[1745898455414,7.23631673,147.6,147.56,13.96]
[1745898455712,7.23631673,147.6,147.57,0.14216157]
[1745898455911,7.23631673,147.59,147.56,13.96]
[1745898456641,7.23631673,147.58,147.56,13.96]
[1745898456939,7.23631673,147.57,147.54,225.38]
[1745898457126,7.23631673,147.57,147.55,0.14216157]
[1745898457307,7.23631673,147.58,147.55,0.14216157]
[1745898457515,11.32399609,147.56,147.54,13.96]
[1745898457926,17.42362333,147.55,147.54,13.96]
[1745898458142,11.32399609,147.55,147.54,13.96]
[1745898458440,82.9,147.57,147.55,0.14216157]
[1745898458632,82.9,147.57,147.56,11.32399609]
[1745898459219,82.9,147.57,147.55,11.46615766]
[1745898460840,82.9,147.57,147.55,0.14216157]
[1745898461029,82.9,147.57,147.55,11.46615766]
[1745898462141,95.84639609,147.59,147.55,11.46615766]
[1745898463346,95.84639609,147.59,147.55,0.14216157]
[1745898465946,95.84639609,147.59,147.55,11.46615766]
[1745898466946,1.6224,147.59,147.57,0.14216157]
[1745898467135,1.6224,147.59,147.57,11.32399609]
[1745898467334,1.6224,147.59,147.56,11.46615766]
[1745898467636,12.94639609,147.59,147.56,0.14216157]
[1745898469754,11.32399609,147.58,147.55,0.14216157]
[1745898472451,7.72044094,147.59,147.55,0.14216157]
[1745898472452,19.04443703,147.59,147.55,0.14216157]
[1745898474073,11.32399609,147.58,147.55,0.14216157]
[1745898477576,7.24606681,147.58,147.55,0.14216157]
[1745898479356,1.6224,147.59,147.55,0.14216157]
[1745898479565,8.86846681,147.59,147.55,0.14216157]
[1745898480077,14.96652228,147.59,147.55,0.14216157]
[1745898480478,7.24606681,147.58,147.55,0.14216157]
[1745898482958,7.72045547,147.59,147.55,0.14216157]
[1745898483166,14.96652228,147.59,147.55,0.14216157]